Cogmind - Beta 9.6 @@@ ROGUE MODE // 2020.05.23 @ 19:18:02 Player: StrongCobra Result: Destroyed by G-34 Mercenary with Small Laser Performance ------------- Evolutions (0) 0 Regions Visited (4) 800 Robots Destroyed (6) 30 Value Destroyed (150) 150 Prototype IDs (0) 0 Alien Tech Used (0) 0 Bonus (300) 300 TOTAL SCORE: 1280 Bonus ------- Aligned with FarCom 300 Cogmind --------- Core Integrity 0/250 Matter 280/300 Energy 250/250 System Corruption 0% Temperature Cool (6) Movement Walking (120) Location -9/Mines Parts ------- > --- POWER (1) -------- Ion Engine > --- PROPULSION (2) --- Aluminum Leg > --- UTILITY (2) ------ Heat Sink > --- WEAPON (2) ------- (None) > --- INVENTORY (4) ---- (None) Peak State ------------ > --- POWER ------------ Light Ion Engine > --- PROPULSION ------- Aluminum Leg Aluminum Leg > --- UTILITY ---------- Heat Sink Heat Sink > --- WEAPON ----------- Medium Laser Light Assault Rifle > --- INVENTORY -------- Light Ion Engine Aluminum Leg [Rating: 7] Favorites ----------- Power Ion Engine Engine Ion Engine Propulsion Aluminum Leg Leg Aluminum Leg Utility Heat Sink Device Heat Sink Weapon Beam Cannon Energy Gun Medium Laser Energy Cannon Beam Cannon Ballistic Gun Light Assault Rifle Build | -11 -10 -10 -10 -9 ------- Run | Scr Mat Min Exi Min Slots Evolved . | . . . . . Power . | . . . . . Propulsion . | . . . . . Utility . | . . . . . Weapon . | . . . . . Parts Attached 14 | 6 6 . 2 . Power 5 | 1 3 . 1 . Engine 5 | 1 3 . 1 . Core . | . . . . . Reactor . | . . . . . Propulsion 3 | 2 . . 1 . Treads . | . . . . . Leg 3 | 2 . . 1 . Wheel . | . . . . . Hover . | . . . . . Flight . | . . . . . Utility 2 | 1 1 . . . Device 2 | 1 1 . . . Storage . | . . . . . Processor . | . . . . . Hackware . | . . . . . Protection . | . . . . . Artifact . | . . . . . Weapon 4 | 2 2 . . . Energy Gun 2 | 2 . . . . Energy Cannon 1 | . 1 . . . Ballistic Gun 1 | . 1 . . . Ballistic Cannon . | . . . . . Launcher . | . . . . . Special Weapon . | . . . . . Impact Weapon . | . . . . . Slashing Weapon . | . . . . . Piercing Weapon . | . . . . . Special Melee Weapon . | . . . . . Unidentified Prototypes . | . . . . . Parts Lost 4 | . . 4 . . Power 1 | . . 1 . . Propulsion 2 | . . 2 . . Utility . | . . . . . Weapon 1 | . . 1 . . Highest Loss Streak 4 | . . 4 . . Average Slot Usage (%) 49 | . 78 53 41 42 Engine 13 | . 14 10 13 14 Leg 17 | . 28 19 13 14 Device 14 | . 14 14 14 14 Energy Gun 1 | . 10 . . . Energy Cannon 2 | . 7 9 . . Naked Turns . | . . . . . Heaviest Build 9 | 7 9 9 6 6 Greatest Support 20 | 20 20 20 10 10 Greatest Overweight (x) . | . . . . . Average Overweight (x) . | . . . . . Largest Inventory Capacity 4 | 4 4 4 4 4 Average Capacity 4 | 4 4 4 4 4 Most Carried 3 | 2 3 2 3 . Average Carried . | . 1 2 . . Final Capacity 4 | 4 4 4 4 4 Final Carried 2 | 1 2 2 . . Class Distribution -------------------- 100% | Mutant Dominant Class ---------------- Mutant | -10/Materials Mutant | -10/Mines Mutant | -10/Exiles Mutant | -9/Mines Resources | -11 -10 -10 -10 -9 ----------- Run | Scr Mat Min Exi Min Matter Collected 330 | 235 95 . . . Remotely . | . . . . . Salvage Created 176 | 38 94 44 . . Parts 14 | 2 10 2 . . Haulers Intercepted . | . . . . . Recyclers Shooed . | . . . . . Parts Field Recycled . | . . . . . Retrieved Matter . | . . . . . Parts Self-Destructed . | . . . . . Prevented . | . . . . . Kills | -11 -10 -10 -10 -9 ------- Run | Scr Mat Min Exi Min Combat Hostiles Destroyed 5 | 1 3 1 . . Guns 4 | 1 3 . . . Cannons 1 | . . 1 . . Classes Destroyed 3 | 1 2 . . . Builder 1 | . 1 . . . Swarmer 2 | . 2 . . . Grunt 3 | 1 1 1 . . Best Kill Streak 1 | 1 1 1 . . Combat Bots Only 1 | 1 1 1 . . Max Kills in Single Turn 1 | 1 1 1 . . Gunslinging . | . . . . . Exploded . | . . . . . Melee . | . . . . . Uniques/NPCs Destroyed . | . . . . . Combat | -11 -10 -10 -10 -9 -------- Run | Scr Mat Min Exi Min Damage Taken 876 | 21 251 401 . 203 Core 258 | . 32 147 . 79 Absorbed by Shields . | . . . . . Core Remaining (%) 100 | 100 . . . . Volleys Fired 36 | 2 20 14 . . Largest 2 | 2 2 1 . . Hottest 90 | 90 90 60 . . Shots Fired 56 | 4 38 14 . . Gun 40 | 4 36 . . . Cannon 16 | . 2 14 . . Launcher . | . . . . . Special . | . . . . . Kinetic 10 | . 10 . . . Thermal 46 | 4 28 14 . . Explosive . | . . . . . Electromagnetic . | . . . . . Robot Hit Streak 6 | 2 6 6 . . Robot Miss Streak 3 | 1 3 1 . . Penetration Max . | . . . . . Secondary Targets . | . . . . . Shots Hit Robots 29 | 2 20 7 . . Core Hits 12 | 2 5 5 . . Critical Hits . | . . . . . Critical Kills . | . . . . . Critical Parts Destroyed . | . . . . . Melee Attacks . | . . . . . Impact . | . . . . . Slashing . | . . . . . Piercing . | . . . . . Sneak Attacks . | . . . . . Combat Hostiles . | . . . . . Follow-up Attacks . | . . . . . Damage Inflicted 369 | 34 215 120 . . Guns 231 | 34 197 . . . Cannons 123 | . 18 105 . . Explosions . | . . . . . Melee . | . . . . . Ramming 15 | . . 15 . . Kinetic 42 | . 42 . . . Thermal 312 | 34 173 105 . . Explosive . | . . . . . Electromagnetic . | . . . . . Impact . | . . . . . Slashing . | . . . . . Piercing . | . . . . . Highest Corruption . | . . . . . Average Corruption . | . . . . . Corruption Purged . | . . . . . Overload Shots . | . . . . . Overflow Damage . | . . . . . Projectiles . | . . . . . Explosions . | . . . . . Melee . | . . . . . Knockbacks . | . . . . . Impact . | . . . . . Kinetic . | . . . . . Secondary . | . . . . . Self-Inflicted Damage 6 | . . 6 . . Shots . | . . . . . Rammed 8 | . . 8 . . Targets Rammed 9 | . . 9 . . Kicked 1 | . . 1 . . Crushed . | . . . . . Highest Temperature 72 | 72 32 72 . . Average Temperature 29 | 41 12 37 . . Received Heat Transfer 402 | 12 60 216 . 114 Siege Activations . | . . . . . Robots Corrupted . | . . . . . Combat Hostiles . | . . . . . Parts Fried . | . . . . . Impact Corruptions . | . . . . . Robots Melted . | . . . . . Combat Hostiles . | . . . . . Parts Melted . | . . . . . Heat Transferred 767 | 99 446 222 . . Parts Sabotaged . | . . . . . Parts Stolen . | . . . . . Parts Stripped . | . . . . . Power Chain Reactions . | . . . . . Missiles Intercepted . | . . . . . Alert | -11 -10 -10 -10 -9 ------- Run | Scr Mat Min Exi Min Peak Influence 143 | 20 143 90 . . Average Influence 56 | 4 102 61 . . Maximum Alert Level . | . . . . . Low Security (%) 100 | 100 100 100 . 100 Level 1 . | . . . . . Level 2 . | . . . . . Level 3 . | . . . . . Level 4 . | . . . . . Level 5 . | . . . . . High Security . | . . . . . Max Security . | . . . . . Squads Dispatched 3 | . 3 . . . Investigation 1 | . 1 . . . Extermination . | . . . . . Reinforcement 2 | . 2 . . . Assault . | . . . . . Garrison . | . . . . . Intercept . | . . . . . Construction Impeded . | . . . . . Haulers Reinforced . | . . . . . Stealth | -11 -10 -10 -10 -9 --------- Run | Scr Mat Min Exi Min Distress Signals 2 | . 2 . . . Communications Jammed . | . . . . . Distress Signals . | . . . . . Times Spotted 13 | 1 6 4 . 2 Peak Tracking Total 4 | 1 4 3 . 2 Tactical Retreats 1 | . 1 . . . Traps | -11 -10 -10 -10 -9 ------- Run | Scr Mat Min Exi Min Traps Triggered . | . . . . . Indirectly . | . . . . . Trap Hack Attempts . | . . . . . Triggered . | . . . . . Disarmed . | . . . . . Reprogrammed . | . . . . . Reused . | . . . . . Traps Extracted . | . . . . . Installed . | . . . . . Triggered . | . . . . . Machines | -11 -10 -10 -10 -9 ---------- Run | Scr Mat Min Exi Min Machines Disabled 1 | . . 1 . . Max in Single Turn 1 | . . 1 . . Machines Sabotaged . | . . . . . Garrisons Compromised . | . . . . . Overloaded Fab Kills . | . . . . . Fab Network Shutdowns . | . . . . . Hacking | -11 -10 -10 -10 -9 --------- Run | Scr Mat Min Exi Min Machines Accessed 2 | . . . 2 . Terminals . | . . . . . Fabricators . | . . . . . Repair Stations . | . . . . . Recycling Units . | . . . . . Scanalyzers . | . . . . . Garrison Access . | . . . . . Total Hacks 31 | . . . 31 . Successful 31 | . . . 31 . Failed . | . . . . . Catastrophic . | . . . . . Database Lockouts . | . . . . . Manual 2 | . . . 2 . Terminals . | . . . . . Fabricators . | . . . . . Repair Stations . | . . . . . Recycling Units . | . . . . . Scanalyzers . | . . . . . Garrison Access . | . . . . . Terminal Hacks 31 | . . . 31 . Record 31 | . . . 31 . Fabricator Hacks . | . . . . . Repair Station Hacks . | . . . . . Recycling Unit Hacks . | . . . . . Scanalyzer . | . . . . . Garrison Access Hacks . | . . . . . Unauthorized Hacks . | . . . . . Terminals . | . . . . . Fabricators . | . . . . . Repair Stations . | . . . . . Recycling Units . | . . . . . Scanalyzers . | . . . . . Garrison Access . | . . . . . Data Cores Recovered . | . . . . . Used . | . . . . . Hacking Detections . | . . . . . Full Trace Events . | . . . . . Feedback Events . | . . . . . Feedback Blocked . | . . . . . Robot Schematics Acquired . | . . . . . Robots Built . | . . . . . Matter . | . . . . . Time . | . . . . . Total Robot Build Rating . | . . . . . Part Schematics Acquired . | . . . . . Parts Built . | . . . . . Matter . | . . . . . Time . | . . . . . Total Part Build Rating . | . . . . . Parts Repaired . | . . . . . Time . | . . . . . Parts Recycled . | . . . . . Recycled Matter . | . . . . . Retrieved Matter . | . . . . . Retrieved Components . | . . . . . Parts Scanalyzed . | . . . . . Part Schematics Acquired . | . . . . . Parts Damaged . | . . . . . Bothacking | -11 -10 -10 -10 -9 ------------ Run | Scr Mat Min Exi Min Used RIF Installer . | . . . . . Robots Hacked . | . . . . . Non-combat . | . . . . . Combat . | . . . . . Robot Hacks Applied . | . . . . . Relay Couplers Released . | . . . . . Robots Rewired . | . . . . . Allies Hacked . | . . . . . Hacks Repelled . | . . . . . Allies | -11 -10 -10 -10 -9 -------- Run | Scr Mat Min Exi Min Total Allies . | . . . . . Largest Group . | . . . . . Highest-Rated Group . | . . . . . Highest-Rated Ally . | . . . . . Total Orders . | . . . . . Ally Attacks . | . . . . . Total Damage . | . . . . . Kills . | . . . . . Allies Corrupted . | . . . . . Allies Melted . | . . . . . Intel | -11 -10 -10 -10 -9 ------- Run | Scr Mat Min Exi Min Robot Analysis Total . | . . . . . Derelict Logs Recovered . | . . . . . Drone Launches . | . . . . . Drone Recoveries . | . . . . . Exploration | -11 -10 -10 -10 -9 ------------- Run | Scr Mat Min Exi Min Turns Passed 1629 | 89 283 177 914 166 Spaces Moved 1309 | 72 169 157 773 138 Core 119 | 23 . 72 24 . Treads . | . . . . . Legs 1190 | 49 169 85 749 138 Wheels . | . . . . . Hover . | . . . . . Flight . | . . . . . Fastest Speed 50 | 50 120 50 50 120 Average Speed 113 | 97 120 87 117 120 Slowest Speed 120 | 120 120 120 120 120 Overloaded Moves . | . . . . . Propulsion Burnouts . | . . . . . Robots Hopped . | . . . . . Cave-ins Triggered . | . . . . . Exploration Rate (%) 35 | 9 31 26 92 19 Regions Visited 4 Branch Regions 3 Pre-discovered Areas 1 | . . . 1 . Known Exits Taken . | . . . . . Unknown Exits Taken 4 | 1 1 1 1 . Scrap Searched . | . . . . . Spaces Dug . | . . . . . Terrain Destroyed . | . . . . . Melee . | . . . . . Projectile . | . . . . . AOE . | . . . . . Actions | -11 -10 -10 -10 -9 --------- Run | Scr Mat Min Exi Min Total 1394 | 86 215 179 776 138 Wait 5 | . 5 . . . Move 1305 | 71 168 156 772 138 Hop . | . . . . . Pick Up 16 | 7 8 . 1 . Fast Attach . | . . . . . Attach 11 | 6 3 . 2 . Detach . | . . . . . Swap 3 | . 3 . . . Drop 9 | . 8 . 1 . Fire 36 | 2 20 14 . . Melee . | . . . . . Ram 1 | . . 1 . . Kick 8 | . . 8 . . Crush . | . . . . . Escape Stasis . | . . . . . Rewire . | . . . . . Trap . | . . . . . Miscellaneous . | . . . . . Route ------- -11/Scrapyard -10/Materials -10/Mines -10/Exiles (discovered 2 exits: [*Min x2]) -9/Mines History --------- Turn | Location | Event 2 | -11/Scrapyard | Met Revision 17 61 | -11/Scrapyard | Discovered new exit (range 8) 90 | -11/Scrapyard | Entered Materials 314 | -10/Materials | Build established: Mutant 317 | -10/Materials | Discovered new exit (range 7) 373 | -10/Materials | Entered Mines 519 | -10/Mines | Core integrity fell below 50% 543 | -10/Mines | Lost 4 parts (1p2n1w) 546 | -10/Mines | Deemed a non-threat by the Exiles lab entrance 547 | -10/Mines | Discovered new exit (range 5) 550 | -10/Mines | Entered Exiles 570 | -10/Exiles | Discovered new exit (range 14) 586 | -10/Exiles | Met 8R-AWN 615 | -10/Exiles | Met EX-HEX 682 | -10/Exiles | Met EX-DEC 721 | -10/Exiles | Learned location of Zion (-7) 812 | -10/Exiles | Discovered new exit (range 14) 893 | -10/Exiles | Visited The Gauntlet 1046 | -10/Exiles | Met EX-BIN 1071 | -10/Exiles | Aligned with FarCom system 1072 | -10/Exiles | Given EX-Vault access code 1464 | -10/Exiles | Entered Mines 1618 | -9/Mines | Core integrity fell below 20% 1630 | -9/Mines | Destroyed by G-34 Mercenary with Small Laser Last Messages --------------- to be undeployable. FarCom alignment achieved. EX-BIN: All done! Way to be a champ, here's the access code as promised: \\WNHR. Only take ONE, mind you, and sorry we don't have much left to pick from. A bunch of our other prototypes were already given to Derelicts out handling other tasks for us. I haven't taken inventory for a while and I'm not sure what's in there now, but if there are more than one of the same prototype you can choose to take all of those and it just counts as your one! Connecting with EX-Vault Access... Connecting with HEX's Terminal... Connecting with BIN's Terminal... [Achievement: Tourist] LOCATION=UNKNOWN GOAL=ESCAPE Receiving FarCom transmissions... C-30 ARC bursts open, deploying its payload. G-47 Trooper unfolds itself. G-34 Mercenary unfolds itself. Map ----- +----------------------------------------------------+ | ?????????????????????????????????????????????????? | | ?????????????????????????????????????????????????? | | ?????????????????????????????????????????????????? | | ?????????????????????????????????????????????????? | | ?????????????????????????????????????????????????? | | ?????????????????????????????????????????????????? | | ?????????????????????????????????????????????????? | | ?????????????????????????????????????????????????? | | ?????????#??##???????????????????????????????????? | | ???????? #? #???????????????????????????????????? | | ???????? # #???????????????????????????????????? | | ??????? # ?????????????####???????????????????? | | ??????# ?????????????## ##??????????????????? | | ?????# ??????????????## ##?????????????????? | | ????# ???????????????# #?????????????????? | | #### #???????????????## #?????????????????? | | # #???????????????## #?????????????????? | | #????????????????# #??????????????????? | | #??????????????#### #???????????????????? | | ##?????????????# $ #???????????????????? | | ##????????????# ### #????#####?#####????? | | #?#####?####?# #?## ###### ### ##???? | | ### ### ### #??# #???? | | %" ## #??# #???? | | # ### """ # #### g #???? | | # #?## """ @ g #???? | | ## ##??#### """ #???? | | ?####??????## ##### ## ##???? | | ????????????## ##???# ### #### ##????? | | ?????????????## ####????# ##?####??#####?????? | | ??????????????####???????## ##??????????????????? | | ??????????????????????????####???????????????????? | | ?????????????????????????????????????????????????? | | ?????????????????????????????????????????????????? | | | | | | | | | | | | | | | | | | | | | | | | | | | | | | | | | +----------------------------------------------------+ Best States ------------- Heat Dissipation 35 Energy Generation 10 Energy Capacity 250 Matter Stores 300 Matter Capacity 300 Sight Range 16 Terrain Scan Density 10 Evasion (%) 50 Item Schematics ----------------- None Robot Schematics ------------------ None Fabricated ------------ Nothing Alien Tech Used ----------------- None Achievements -------------- Librarian Tourist Challenges ------------ None Game ------ Seed BeamProcessingTriangulator Manual? 0 Play Time 00:18:31 Cumulative 2.3 hours Start 2020.05.23 @ 18:58:30 End 2020.05.23 @ 19:18:02 Sessions 1 Manual Loads 0 Difficulty Rogue Special Mode None Game No. 3 Rogue 3 Adventurer 0 Explorer 0 Win Type - Total 0 Types 0/0/0/0/0/0/0 Lore% 6 Gallery% 5 Achievement% 5 Wizard Run 0 Options --------- ASCII 0 Keyboard 0 Movement Numpad Keybinds 0 Fullscreen 1 Font 24/Smallcaps Map View 76x50 Tactical HUD 0 Map Filters NONE Filters NONE Steam 1 RUN: 9153f2aa-8142-4fa1-b583-6ee0555cafde